Cogmind - Beta 16 @@@ ROGUE MODE // 2025.11.08 @ 14:58:16 Player: FAQ Result: Self-destructed Performance ------------- Evolutions (0) 0 Regions Visited (4) 800 Robots Destroyed (12) 60 Value Destroyed (235) 235 Prototype IDs (37) 740 Alien Tech Used (0) 0 Bonus (300) 300 TOTAL SCORE: 2135 Bonus ------- Aligned with FarCom 300 Cogmind --------- Core Integrity 60/250 Matter 270/300 Energy 240/250 System Corruption 0% Temperature Cool (0) Movement Treading (160) Location -9/Mines Parts ------- > --- POWER (1) -------- Ion Engine > --- PROPULSION (2) --- Light Treads Light Treads > --- UTILITY (2) ------ Small Storage Unit > --- WEAPON (2) ------- Light Cannon > --- INVENTORY (8) ---- Lightpack 2.0 Hacking Suite Hacking Suite Grenade Launcher Datajack Peak State ------------ > --- POWER ------------ Ion Engine > --- PROPULSION ------- Light Treads Light Treads > --- UTILITY ---------- Small Storage Unit Light Armor Plating > --- WEAPON ----------- Heavy Assault Rifle Light Cannon > --- INVENTORY -------- Light Treads Lightpack 2.0 Hacking Suite Hacking Suite Grenade Launcher Datajack [Rating: 11] Favorites ----------- Power Ion Engine Engine Ion Engine Propulsion Light Treads Treads Light Treads Utility Small Storage Unit Device Tractor Beam Storage Small Storage Unit Protection Light Armor Plating Weapon Assault Rifle Ballistic Gun Assault Rifle Ballistic Cannon Light Cannon Special Melee Weapon Datajack Build | -11 -10 -10 -10 -9 ------- Run | Yrd Mat Min Exi Min Slots Evolved . | . . . . . Power . | . . . . . Propulsion . | . . . . . Utility . | . . . . . Weapon . | . . . . . Parts Attached 15 | 8 . 5 1 1 Power 1 | 1 . . . . Engine 1 | 1 . . . . Core . | . . . . . Reactor . | . . . . . Propulsion 5 | 2 . 2 . 1 Treads 5 | 2 . 2 . 1 Leg . | . . . . . Wheel . | . . . . . Hover . | . . . . . Flight . | . . . . . Utility 3 | 2 . 1 . . Device 1 | 1 . . . . Storage 1 | 1 . . . . Processor . | . . . . . Hackware . | . . . . . Protection 1 | . . 1 . . Artifact . | . . . . . Weapon 6 | 3 . 2 1 . Energy Gun . | . . . . . Energy Cannon . | . . . . . Ballistic Gun 4 | 3 . 1 . . Ballistic Cannon 1 | . . 1 . . Launcher . | . . . . . Special Weapon . | . . . . . Impact Weapon . | . . . . . Slashing Weapon . | . . . . . Piercing Weapon . | . . . . . Special Melee Weapon 1 | . . . 1 . Unidentified Prototypes . | . . . . . Parts Lost 3 | . . . . 3 Power . | . . . . . Propulsion 1 | . . . . 1 Utility 1 | . . . . 1 Weapon 1 | . . . . 1 Highest Loss Streak 3 | . . . . 3 To Critical Strikes . | . . . . . Average Backups 5 | 1 4 8 6 6 Power . | . 1 1 . . Propulsion 1 | . 1 2 1 1 Utility 1 | . . 2 2 3 Weapon 1 | . 1 2 1 1 Tool/Special . | . . . . . Unused Backups 6 | . . . 2 4 Power 1 | . . . 1 . Propulsion 1 | . . . 1 . Utility 3 | . . . . 3 Weapon 1 | . . . . 1 Tool/Special . | . . . . . Average Slot Usage (%) 99 | . 100 100 100 98 Engine 14 | . 14 14 14 14 Treads 28 | . 28 28 28 28 Device 5 | . 14 8 . . Storage 14 | . 14 14 14 14 Protection 8 | . . 5 14 12 Ballistic Gun 16 | . 28 24 8 14 Ballistic Cannon 8 | . . 3 14 14 Special Melee Weapon 2 | . . . 5 . Peak Build Rating 11 | 7 8 9 11 11 Average Rating 8 | 5 7 8 9 10 On Entrance 7 | . 7 8 9 11 Avg Prop Armor Cover (%) . | . . . . . Naked Turns . | . . . . . Heaviest Build 19 | 15 15 19 19 19 Greatest Support 40 | 40 40 40 40 40 Greatest Overweight (x) . | . . . . . Average Overweight (x) . | . . . . . Largest Inventory Capacity 8 | 8 8 8 8 8 Average Capacity 7 | 7 8 8 8 8 Most Carried 8 | 3 8 8 8 8 Average Carried 6 | 1 4 8 7 7 Final Capacity 8 | 8 8 8 8 8 Final Carried 8 | 3 8 8 8 7 Class Distribution -------------------- 100% | Mutant Dominant Class ---------------- Mutant | -10/Materials Mutant | -10/Mines Mutant | -10/Exiles Mutant | -9/Mines Resources | -11 -10 -10 -10 -9 ----------- Run | Yrd Mat Min Exi Min Matter Collected 482 | 254 140 48 . 40 Remotely 264 | 76 140 48 . . Salvage Created 397 | 69 283 45 . . Parts 20 | 3 14 3 . . Haulers Intercepted 1 | . 1 . . . Recyclers Shooed . | . . . . . Parts Field Recycled . | . . . . . Retrieved Matter . | . . . . . Parts Self-Destructed . | . . . . . Prevented . | . . . . . Parts Restored . | . . . . . Kills | -11 -10 -10 -10 -9 ------- Run | Yrd Mat Min Exi Min Combat Hostiles Destroyed 7 | . 4 3 . . Guns 7 | . 4 3 . . Classes Destroyed 6 | 1 4 1 . . Hauler 1 | . 1 . . . Recycler 1 | 1 . . . . Operator 2 | . 2 . . . Watcher 1 | . 1 . . . Swarmer 3 | . . 3 . . Grunt 4 | . 4 . . . Best Kill Streak 3 | 1 2 3 . . Combat Bots Only 3 | . 2 3 . . Max Kills in Single Turn 2 | 1 1 2 . . Gunslinging 1 | . . 1 . . Exploded . | . . . . . Melee . | . . . . . Uniques/NPCs Destroyed . | . . . . . Combat | -11 -10 -10 -10 -9 -------- Run | Yrd Mat Min Exi Min Hostile Shots Fired 44 | . 19 8 . 17 Missed 4 | . 3 1 . . Hits 40 | . 16 7 . 17 Projectile 40 | . 16 7 . 17 AOE 17 | . . . . 17 Damage Taken 982 | . 226 49 . 707 Core 190 | . 18 7 . 165 Absorbed by Shields . | . . . . . Core Remaining (%) 100 | 100 . . . . Volleys Fired 27 | 1 18 3 . 5 Largest 2 | 2 2 2 . 2 Hottest 53 | 40 40 40 . 53 Shots Fired 54 | 2 36 6 . 10 Gun 49 | 2 36 6 . 5 Cannon 5 | . . . . 5 Launcher . | . . . . . Special . | . . . . . Kinetic 54 | 2 36 6 . 10 Thermal . | . . . . . Explosive . | . . . . . Electromagnetic . | . . . . . Robot Hit Streak 7 | 2 7 3 . 3 Robot Miss Streak 3 | . 3 2 . 3 Penetration Max . | . . . . . Secondary Targets 1 | . . 1 . . Max Gunslinging Chain 1 | . . 1 . . Shots Hit Robots 40 | 2 24 3 6 5 Core Hits 23 | 2 17 3 . 1 Critical Kills 1 | . 1 . . . Critical Parts Destroyed . | . . . . . Critical Strikes 1 | . 1 . . . Destroy 1 | . 1 . . . Melee Attacks 6 | . . . 6 . Impact . | . . . . . Slashing . | . . . . . Piercing . | . . . . . Sneak Attacks 5 | . . . 5 . Combat Hostiles . | . . . . . Follow-up Attacks . | . . . . . Damage Inflicted 457 | 27 298 36 . 96 Guns 406 | 27 298 36 . 45 Cannons 51 | . . . . 51 Explosions . | . . . . . Melee . | . . . . . Ramming . | . . . . . Kinetic 457 | 27 298 36 . 96 Thermal . | . . . . . Explosive . | . . . . . Electromagnetic . | . . . . . Impact . | . . . . . Slashing . | . . . . . Piercing . | . . . . . Highest Corruption . | . . . . . Average Corruption . | . . . . . Corruption Purged . | . . . . . Corruption Blocked . | . . . . . Overload Shots . | . . . . . Overflow Damage . | . . . . . Projectiles . | . . . . . Explosions . | . . . . . Melee . | . . . . . Knockbacks . | . . . . . Impact . | . . . . . Kinetic . | . . . . . Secondary . | . . . . . Self-Inflicted Damage . | . . . . . Shots . | . . . . . Rammed . | . . . . . Targets Rammed . | . . . . . Kicked . | . . . . . Crushed . | . . . . . Highest Temperature 10 | . 10 . . . Average Temperature 4 | . 4 . . . Received Heat Transfer 123 | . 123 . . . Siege Activations . | . . . . . Martial Activations . | . . . . . Shielding Activations . | . . . . . Robots Disrupted . | . . . . . Combat Hostiles . | . . . . . Robots Corrupted . | . . . . . Combat Hostiles . | . . . . . Parts Fried . | . . . . . Impact Corruptions . | . . . . . Robots Melted . | . . . . . Combat Hostiles . | . . . . . Parts Melted . | . . . . . Heat Transferred . | . . . . . Parts Sabotaged . | . . . . . Parts Stolen . | . . . . . Parts Stripped . | . . . . . Power Chain Reactions . | . . . . . Alert | -11 -10 -10 -10 -9 ------- Run | Yrd Mat Min Exi Min Maximum Alert Level . | . . . . . Low Security (%) 100 | 100 100 100 . 100 Level 1 . | . . . . . Level 2 . | . . . . . Level 3 . | . . . . . Level 4 . | . . . . . Level 5 . | . . . . . High Security . | . . . . . Max Security . | . . . . . Peak Influence 70 | 5 60 70 . . Initial . | . . . . . Average 15 | . 17 24 . . Influence Increases 225 | 5 150 70 . . Destroy 0b10 Robot/C 140 | . 80 60 . . Destroy 0b10 Robot/NC 25 | 5 20 . . . Destroy Leader 34 | . 24 10 . . Successful Hack 11 | . 11 . . . Lose Combat Pursuer 15 | . 15 . . . Influence Decreases 225 | 5 150 70 . . Time Decay 225 | 5 150 70 . . Squads Dispatched 2 | . 2 . . . Investigation . | . . . . . Extermination . | . . . . . Reinforcement 2 | . 2 . . . Assault . | . . . . . Garrison . | . . . . . Intercept . | . . . . . Searches Triggered . | . . . . . Construction Impeded . | . . . . . Haulers Reinforced . | . . . . . Active Scanning Responses . | . . . . . Cargo Convoy Interrupts . | . . . . . Stealth | -11 -10 -10 -10 -9 --------- Run | Yrd Mat Min Exi Min Distress Signals . | . . . . . Communications Jammed . | . . . . . Distress Signals . | . . . . . Times Spotted 16 | . 11 3 . 2 Peak Tracking Total 3 | . 3 3 . 2 Tactical Retreats 1 | . 1 . . . Traps | -11 -10 -10 -10 -9 ------- Run | Yrd Mat Min Exi Min Traps Triggered . | . . . . . Indirectly . | . . . . . Trap Hack Attempts . | . . . . . Triggered . | . . . . . Disarmed . | . . . . . Reprogrammed . | . . . . . Reused . | . . . . . Traps Extracted . | . . . . . Installed . | . . . . . Triggered . | . . . . . Machines | -11 -10 -10 -10 -9 ---------- Run | Yrd Mat Min Exi Min Machines Disabled . | . . . . . Max in Single Turn . | . . . . . Machines Repaired . | . . . . . Machines Dismantled . | . . . . . Machines Sabotaged . | . . . . . Overloaded Fab Kills . | . . . . . Hacking | -11 -10 -10 -10 -9 --------- Run | Yrd Mat Min Exi Min Machines Accessed 4 | . 3 . 1 . Terminals 3 | . 3 . . . Fabricators . | . . . . . Repair Stations . | . . . . . Recycling Units . | . . . . . Scanalyzers . | . . . . . Garrison Access . | . . . . . Total Hacks 10 | . 9 . 1 . Successful 4 | . 3 . 1 . Failed 5 | . 5 . . . Catastrophic . | . . . . . Database Lockouts 1 | . 1 . . . Manual 8 | . 7 . 1 . Terminals 9 | . 9 . . . Fabricators . | . . . . . Repair Stations . | . . . . . Recycling Units . | . . . . . Scanalyzers . | . . . . . Garrison Access . | . . . . . Terminal Hacks 3 | . 2 . 1 . Robot Analysis 2 | . 2 . . . Proto ID Catalog 1 | . . . 1 . Fabricator Hacks . | . . . . . Repair Station Hacks . | . . . . . Recycling Unit Hacks . | . . . . . Scanalyzer . | . . . . . Garrison Access Hacks . | . . . . . Unauthorized Hacks 1 | . 1 . . . Terminals 1 | . 1 . . . Operators 1 | . 1 . . . Fabricators . | . . . . . Repair Stations . | . . . . . Recycling Units . | . . . . . Scanalyzers . | . . . . . Garrison Access . | . . . . . Data Cores Recovered . | . . . . . Used . | . . . . . Hacking Detections 3 | . 3 . . . Full Trace Events . | . . . . . Feedback Events . | . . . . . Feedback Blocked . | . . . . . Robot Schematics Acquired . | . . . . . Robots Built . | . . . . . Authchips . | . . . . . Time . | . . . . . Total Robot Build Rating . | . . . . . Part Schematics Acquired . | . . . . . Parts Built . | . . . . . Authchips . | . . . . . Time . | . . . . . Total Part Build Rating . | . . . . . Part Studies Acquired . | . . . . . Parts Repaired . | . . . . . Time . | . . . . . Parts Recycled . | . . . . . Recycled Matter . | . . . . . Retrieved Matter . | . . . . . Retrieved Components . | . . . . . Parts Scanalyzed . | . . . . . Part Schematics Acquired . | . . . . . Parts Damaged . | . . . . . Bothacking | -11 -10 -10 -10 -9 ------------ Run | Yrd Mat Min Exi Min Used RIF Installer . | . . . . . Robots Hacked 5 | . . . 5 . Non-combat 3 | . . . 3 . Combat 2 | . . . 2 . Robot Hacks Applied 5 | . . . 5 . parse_system 5 | . . . 5 . Relay Couplers Released . | . . . . . Fabnet Peak Effective % . | . . . . . Robots Rewired . | . . . . . Allies Hacked . | . . . . . Hacks Repelled . | . . . . . Allies | -11 -10 -10 -10 -9 -------- Run | Yrd Mat Min Exi Min Total Allies . | . . . . . Largest Group . | . . . . . Highest-Rated Group . | . . . . . Highest-Rated Ally . | . . . . . Total Orders . | . . . . . Ally Attacks . | . . . . . Total Damage . | . . . . . Kills . | . . . . . Allies Corrupted . | . . . . . Allies Melted . | . . . . . Intel | -11 -10 -10 -10 -9 ------- Run | Yrd Mat Min Exi Min Active Infowar (turns) . | . . . . . Robot Analysis Total 2 | . 2 . . . Derelict Logs Recovered . | . . . . . Drone Launches . | . . . . . Drone Recoveries . | . . . . . Exploration | -11 -10 -10 -10 -9 ------------- Run | Yrd Mat Min Exi Min Turns Passed 1942 | 116 552 212 996 66 Spaces Moved 1127 | 55 309 119 613 31 Core 1 | 1 . . . . Treads 1126 | 54 309 119 613 31 Legs . | . . . . . Wheels . | . . . . . Hover . | . . . . . Flight . | . . . . . Fastest Speed 50 | 50 160 160 160 160 Average Speed 159 | 158 160 160 160 160 Slowest Speed 160 | 160 160 160 160 160 Overloaded Moves . | . . . . . Propulsion Burnouts . | . . . . . Robots Hopped . | . . . . . Potential Cave-ins . | . . . . . Cave-ins Triggered . | . . . . . Exploration Rate (%) 35 | 4 54 28 77 16 Regions Visited 4 Branch Regions 3 Pre-discovered Areas . | . . . . . Known Exits Taken . | . . . . . Unknown Exits Taken 4 | 1 1 1 1 . Scrap Searched 1 | . . . . 1 Spaces Dug . | . . . . . Terrain Destroyed . | . . . . . Melee . | . . . . . Projectile . | . . . . . AOE . | . . . . . Terrain Rammed . | . . . . . Walls Destroyed . | . . . . . Machines Disabled . | . . . . . Actions | -11 -10 -10 -10 -9 --------- Run | Yrd Mat Min Exi Min Total 1209 | 78 331 137 626 37 Wait 18 | 13 . 5 . . Move 1123 | 54 308 118 612 31 Hop . | . . . . . Pick Up 9 | 2 5 1 1 . Fast Attach 8 | 7 . 1 . . Attach 1 | . . . . 1 Detach . | . . . . . Swap 7 | 1 . 4 2 . Drop 8 | . . 5 3 . Fire 27 | 1 18 3 . 5 Melee 6 | . . . 6 . Ram . | . . . . . Kick . | . . . . . Crush . | . . . . . Escape Stasis . | . . . . . Rewire 2 | . . . 2 . Trap . | . . . . . Miscellaneous . | . . . . . Route ------- -11/Scrapyard -10/Materials (discovered 2 exits: [*Mat] / [*Min]) -10/Mines -10/Exiles -9/Mines History --------- Turn | Location | Event 7 | -11/Scrapyard | Discovered new exit (range 16) 117 | -11/Scrapyard | Entered Materials 308 | -10/Materials | Build established: Mutant 329 | -10/Materials | Discovered new exit (range 7) 450 | -10/Materials | Central database locked down 497 | -10/Materials | Discovered new exit (range 3) 669 | -10/Materials | Entered Mines 684 | -10/Mines | Met a Derelict bent on vengeance 776 | -10/Mines | Joined a pair of Derelicts in attacking an 0b10 outpost 873 | -10/Mines | Deemed a non-threat by the Exiles lab entrance 875 | -10/Mines | Discovered new exit (range 5) 881 | -10/Mines | Entered Exiles 921 | -10/Exiles | Met 8R-AWN 947 | -10/Exiles | Met EX-HEX 993 | -10/Exiles | Met EX-BIN 1011 | -10/Exiles | Aligned with FarCom system 1013 | -10/Exiles | Given EX-Vault access code 1049 | -10/Exiles | Opened EX-Vault 1091 | -10/Exiles | Warned to stay clear of 0b10 Research branches 1139 | -10/Exiles | Met EX-DEC 1341 | -10/Exiles | Found Lightpack 2.0 1750 | -10/Exiles | Visited The Gauntlet 1861 | -10/Exiles | Discovered new exit (range 12) 1877 | -10/Exiles | Left Exiles lab with Lightpack 2.0 1877 | -10/Exiles | Entered Mines 1878 | -9/Mines | Assembled infested the area 1883 | -9/Mines | Assisted by a Guerilla fighting off Assembled 1942 | -9/Mines | Core integrity fell below 50% 1943 | -9/Mines | Self-destructed Last Messages --------------- 01877_ Receiving FarCom transmissions... 01878_ ALERT: Infestation in the mines, dispatching Demolisher response squad. 01883_ A derelict emerges from the shadows: "You need to get out of here! I've been tracking a group of Assembled to figure out where they're coming from, and they're closing on this area, come on!" 01890_ Searching scrap... 01890_ Found Hammer. 01890_ Found Lrg. Matter Pod. 01890_ Found 58 Matter. 01891_ Acquired 40 matter. 01910_ HV Slug penetrates Wall. 01911_ C-45 Heavy ARC bursts open, deploying its payload. 01911_ D-53 Grenadier unfolds itself. 01935_ The unstable cave ceiling collapses. 01936_ Lgt. Armor Plating destroyed. 01937_ The unstable cave ceiling collapses. 01940_ Hvy. Assault Rifle destroyed. 01941_ The unstable cave ceiling collapses. 01941_ Lgt. Treads destroyed. Map ----- +----------------------------------------------------+ | | | | | | | | | | | | | | | | | | | | | ?????????????????????????????????????????????????? | | ?????????????????????####????????????????????????? | | ????????????????????## ##??######???????????????? | | ??????????????####### ### ##??????????????? | | ?????????????## #??????????????? | | ?????????????# """ #??????????????? | | ?????????????# """ #####???????????? | | ?????????????## """ ??????????? | | ??????????????## ??????????? | | ??????????????## #####?????????????? | | ??????????????# #####?????????????????? | | ??????????????# ##???????????????????? | | ??????????????# ##??????????????????? | | ??????????????# #??????????????????? | | ??????????????## #??????????????????? | | ???????????????### # @ #??????????????????? | | ?????????????????#### ##??????????????? ? | | ????????????????????# ##???????????? #? | | ????????????????????# ##??####??? #?? | | ????????????????????## ### ## #??? | | ?????????????????????####### d% #??? | | ???????????????????????????## d #???? | | ????????????????????????????## #???? | | ?????????????????????????????## #???? | | ??????????????????????????????## ## ##???? | | ???????????????????????????????# # ? ##????? | | ??????????????????????????????# # ? #????? | | ?????????????????????????????# ? ?? #????? | | ?????????????????????????????# ?? #???? | | ?????????????????????????????## # ???? ??? | | ??????????????????????????????##### ? ????? %?? | | ??????????????????????????????????? ? ?????#?? | | ??????????????????????????????????? ?? ???????? | | ???????????????????????????????????##??? ???????? | | ?????????????????????????????????????????????????? | | ?????????????????????????????????????????????????? | | ?????????????????????????????????????????????????? | | ?????????????????????????????????????????????????? | | ?????????????????????????????????????????????????? | | ?????????????????????????????????????????????????? | +----------------------------------------------------+ Best States ------------- Heat Dissipation 25 Energy Generation 10 Energy Capacity 250 Matter Stores 300 Matter Capacity 300 Sight Range 16 Terrain Scan Density 10 Armor Coverage 150 Evasion (%) 40 Recoil Reduction 2 Item Schematics ----------------- None Robot Schematics ------------------ None Fabricated ------------ Nothing Repaired ---------- Nothing Studied --------- None Alien Tech Used ----------------- None Achievements -------------- None Challenges ------------ None Game ------ Seed ShiftPortableLegs Manual? 0 Play Time 00:10:22 Cumulative 29.6 hours Start 2025.11.08 @ 14:48:32 End 2025.11.08 @ 14:58:16 Sessions 1 Manual Loads 0 Difficulty Rogue Special Mode None Game No. 63 Rogue 63 Adventurer 0 Explorer 0 Win Type - Total 0 Types 0/0/0/0/0/0/0/0/0/0 Lore% 17 Gallery% 26 Achievement% 23 Wizard Run 0 Options --------- Layout 0 ASCII 1 Keyboard 1 Movement Numpad Keybinds 0 Fullscreen 1 Font 18/VGA_Max Map View 76x50 Zoom Use 0% Tactical HUD 1 Map Filters NONE Filters NONE Steam 1 RUN: 8701e33c-a87d-41a3-a696-7b42a4b3000f